lending/lending_fUSD_20240510
["ID","MTS","AMOUNT","RATE_DAILY","PERIOD"]
[326769016,1715337067515,-12610.31,0.00027671,5]
[326769017,1715337067527,-500.0,0.00027671,5]
[326769018,1715337067538,-2419.13,0.00027671,5]
[326769019,1715337067547,-983.69,0.00027671,5]
[326769020,1715337067557,-500.0,0.00027671,5]
[326769021,1715337067566,-500.0,0.00027671,5]
[326769022,1715337067576,-843.05,0.00027671,5]
[326769023,1715337067586,-500.0,0.00027671,5]
[326769024,1715337067595,-2459.01,0.00027671,5]
[326769025,1715337067605,-1156.7,0.00027671,5]
[326769026,1715337067615,-7721.13,0.00027671,5]
[326769027,1715337067625,-5659.11,0.00027671,5]
[326769028,1715337067634,-5888.06,0.00027671,5]
[326769029,1715337067643,-500.0,0.00027671,5]
[326769030,1715337067652,-787.62,0.00027671,5]
[326769031,1715337067662,-504.96,0.00027671,5]
[326769032,1715337067671,-3610.56,0.00027671,5]
[326769033,1715337067680,-1137.49,0.00027671,5]
[326769034,1715337067690,-989.22,0.00027671,5]
[326769035,1715337067700,-604.82,0.00027671,5]
[326769036,1715337067709,-2025.95,0.00027671,5]
[326769037,1715337067719,-2636.03,0.00027671,5]
[326769038,1715337067729,-507.29,0.00027671,5]
[326769039,1715337067741,-773.17,0.00027671,2]
[326769040,1715337067750,-561.2,0.00027671,5]
[326769041,1715337067759,-2462.19,0.00027671,5]
[326769042,1715337067769,-3162.34,0.00027671,5]
[326769043,1715337067779,-10578.69,0.00027671,5]
[326769044,1715337067790,-1938.07,0.00027671,5]
[326769045,1715337067799,-1671.4,0.00027671,5]
[326769046,1715337067809,-565.09,0.00027671,5]
[326769047,1715337067821,-702.11,0.00027671,5]
[326769048,1715337067830,-1059.58,0.00027671,5]
[326769049,1715337067839,-500.0,0.00027671,5]
[326769050,1715337067849,-500.0,0.00027671,5]
[326769051,1715337067859,-4328.7,0.00027671,5]
[326769052,1715337067869,-1384.25,0.00027671,5]
[326769053,1715337067878,-1667.52,0.00027671,5]
[326769054,1715337067888,-595.36,0.00027671,5]
[326769055,1715337067899,-1354.94,0.00027671,5]
[326769056,1715337067908,-1298.99,0.00027671,5]
[326769057,1715337067920,-2342.52,0.00027671,5]
[326769058,1715337067929,-1147.55,0.00027671,5]
[326769059,1715337067938,-500.0,0.00027671,5]
[326769060,1715337067947,-901.98,0.00027671,5]
[326769061,1715337067957,-5084.92,0.00027671,5]
[326769062,1715337067966,-500.0,0.00027671,5]
[326769063,1715337067975,-659.68,0.00027671,5]
[326769064,1715337067984,-2050.9,0.00027671,5]
[326769065,1715337067993,-500.0,0.00027671,5]
[326769066,1715337068003,-500.0,0.00027671,5]
[326769067,1715337068012,-1736.84,0.00027671,5]
[326769068,1715337068021,-500.0,0.00027671,5]
[326769069,1715337068031,-619.57,0.00027671,5]
[326769070,1715337068042,-748.05,0.00027671,5]
[326769071,1715337068051,-618.53,0.00027671,5]
[326769072,1715337068060,-192.77629511,0.00027671,5]
[326769073,1715337068070,-13999.15,0.00027671,5]
[326769074,1715337068079,-2535.32,0.00027671,5]
[326769075,1715337068088,-2950.58,0.00027671,5]
[326769076,1715337068100,-954.46,0.00027671,5]
[326769077,1715337068110,-500.0,0.00027671,5]
[326769078,1715337068120,-1834.17,0.00027671,5]
[326769079,1715337068130,-35869.36,0.00027671,5]
[326769080,1715337068140,-623.28,0.00027671,5]
[326769081,1715337068150,-18420.12,0.00027671,5]
[326769082,1715337068162,-646.19,0.00027671,5]
[326769083,1715337068172,-653.74,0.00027671,5]
[326769084,1715337068182,-500.0,0.00027671,5]
[326769085,1715337068192,-1497.1,0.00027671,5]
[326769086,1715337068201,-500.0,0.00027671,5]
[326769087,1715337068211,-1876.5,0.00027671,5]
[326769088,1715337068220,-4328.84,0.00027671,5]
[326769089,1715337068229,-4820.15,0.00027671,5]
[326769090,1715337068238,-500.0,0.00027671,5]
[326769091,1715337068247,-1313.3,0.00027671,5]
[326769092,1715337068257,-500.0,0.00027671,5]
[326769093,1715337068266,-2055.03,0.00027671,5]
[326769094,1715337068275,-500.0,0.00027671,5]
[326769095,1715337068285,-3361.68,0.00027671,5]
[326769096,1715337068294,-3462.46,0.00027671,5]
[326769097,1715337068304,-1671.57,0.00027671,5]
[326769098,1715337068387,-500.0,0.00027671,5]
[326769099,1715337068397,-500.0,0.00027671,5]
[326769100,1715337068406,-1664.6,0.00027671,5]
[326769101,1715337068415,-2189.24,0.00027671,5]
[326769102,1715337068424,-500.0,0.00027671,5]
[326769103,1715337068433,-652.36,0.00027671,5]
[326769104,1715337068442,-1719.19,0.00027671,5]
[326769105,1715337068451,-1615.04,0.00027671,5]
[326769106,1715337068460,-3121.67,0.00027671,5]
[326769107,1715337068469,-2884.17,0.00027671,5]
[326769108,1715337068478,-500.0,0.00027671,5]
[326769109,1715337068488,-1101.58,0.00027671,5]
[326769110,1715337068497,-716.38,0.00027671,5]
[326769111,1715337068506,-500.0,0.00027671,5]
[326769112,1715337068515,-500.0,0.00027671,5]
[326769113,1715337068524,-2388.29,0.00027671,5]
[326769114,1715337068533,-2891.09,0.00027671,5]
[326769115,1715337068543,-500.0,0.00027671,5]
[326769116,1715337068552,-828.08,0.00027671,5]
[326769117,1715337068560,-976.70264908,0.00027671,5]
[326769118,1715337068570,-761.6,0.00027671,5]
[326769119,1715337068579,-1312.58,0.00027671,5]
[326769120,1715337068588,-590.48,0.00027671,5]
[326769121,1715337068597,-2973.78,0.00027671,5]
[326769122,1715337068606,-2511.32,0.00027671,5]
[326769123,1715337068616,-500.0,0.00027671,5]
[326769124,1715337068625,-9003.1,0.00027671,5]
[326769125,1715337068638,-5880.03,0.00027671,5]
[326769126,1715337068649,-632.41,0.00027671,5]
[326769127,1715337068658,-738.56,0.00027671,5]
[326769128,1715337068668,-831.4,0.00027671,5]
[326769129,1715337068677,-1202.22,0.00027671,5]
[326769130,1715337068687,-1304.96,0.00027671,5]
[326769131,1715337068696,-2234.55,0.00027671,5]
[326769132,1715337068706,-4801.71,0.00027671,5]
[326769133,1715337068715,-2563.92,0.00027671,5]
[326769134,1715337068724,-3554.19,0.00027671,5]
[326769135,1715337068735,-3057.8,0.00027671,5]
[326769136,1715337068746,-788.63,0.00027671,5]
[326769137,1715337068755,-727.32,0.00027671,5]
[326769138,1715337068766,-1657.95,0.00027671,5]
[326769139,1715337068778,-5199.78,0.00027671,5]
[326769140,1715337068789,-500.0,0.00027671,5]
[326769141,1715337068799,-500.0,0.00027671,5]
[326769142,1715337068809,-1137.75,0.00027671,5]
[326769143,1715337068819,-2282.38,0.00027671,5]
[326769144,1715337068829,-500.0,0.00027671,5]
[326769145,1715337068838,-2182.52,0.00027671,5]
[326769146,1715337068846,-583.56,0.00027671,5]
[326769147,1715337068856,-500.0,0.00027671,5]
[326769148,1715337068865,-629.65812971,0.00027671,5]
[326769149,1715337068874,-1683.2,0.00027671,5]
[326769150,1715337068883,-500.0,0.00027671,5]
[326769151,1715337068893,-500.0,0.00027671,5]
[326769152,1715337068902,-2643.99,0.00027671,5]
[326769153,1715337068912,-2064.74,0.00027671,5]
[326769154,1715337068921,-500.0,0.00027671,5]
[326769155,1715337068930,-500.0,0.00027671,5]
[326769156,1715337068939,-4604.99,0.00027671,5]
[326769157,1715337068949,-778.98,0.00027671,5]
[326769158,1715337068958,-500.0,0.00027671,5]
[326769159,1715337068967,-500.0,0.00027671,5]
[326769160,1715337068976,-500.0,0.00027671,5]
[326769161,1715337068986,-1574.73,0.00027671,5]
[326769162,1715337068995,-500.0,0.00027671,5]
[326769163,1715337069004,-1331.2,0.00027671,5]
[326769164,1715337069014,-2453.31,0.00027671,5]
[326769165,1715337069023,-7202.45,0.00027671,5]
[326769166,1715337069032,-712.75,0.00027671,5]
[326769167,1715337069042,-2833.73,0.00027671,5]
[326769168,1715337069052,-677.79,0.00027671,5]
[326769169,1715337069061,-500.0,0.00027671,5]
[326769170,1715337069071,-1873.23,0.00027671,5]
[326769171,1715337069080,-500.0,0.00027671,5]
[326769172,1715337069090,-2295.32,0.00027671,5]
[326769173,1715337069099,-3536.38,0.00027671,5]
[326769174,1715337069108,-2206.94,0.00027671,5]
[326769175,1715337069118,-1472.39,0.00027671,5]
[326769176,1715337069127,-1212.53,0.00027671,5]
[326769177,1715337069137,-801.27,0.00027671,5]
[326769178,1715337069146,-1637.87,0.00027671,5]
[326769179,1715337069155,-2147.31,0.00027671,5]
[326769180,1715337069165,-1023.45,0.00027671,5]
[326769181,1715337069175,-508.569876,0.00027671,5]
[326769182,1715337069184,-500.0,0.00027671,5]
[326769183,1715337069193,-500.0,0.00027671,5]
[326769184,1715337069203,-500.0,0.00027671,5]
[326769185,1715337069212,-416.90228149,0.00027671,5]
[326769186,1715337069221,-5554.2,0.00027671,5]
[326769187,1715337069230,-698.33,0.00027671,5]
[326769188,1715337069240,-6403.19,0.00027671,5]
[326769189,1715337069249,-1806.2,0.00027671,5]
[326769190,1715337069258,-500.0,0.00027671,5]
[326769191,1715337069268,-500.0,0.00027671,5]
[326769192,1715337069277,-2384.96,0.00027671,5]
[326769193,1715337069287,-808.2,0.00027671,5]
[326769194,1715337069296,-3341.85,0.00027671,5]
[326769195,1715337069306,-500.0,0.00027671,5]
[326769196,1715337069315,-300.69563272,0.00027671,5]
[326769197,1715337069324,-500.0,0.00027671,5]
[326769198,1715337069334,-500.0,0.00027671,5]
[326769199,1715337069344,-4036.77,0.00027671,5]
[326769200,1715337069353,-3481.08,0.00027671,5]
[326769201,1715337069363,-7268.12,0.00027671,5]
[326769202,1715337069372,-526.11,0.00027671,5]
[326769203,1715337069381,-567.13,0.00027671,5]
[326769204,1715337069391,-500.0,0.00027671,5]
[326769205,1715337069400,-1536.23,0.00027671,5]
[326769206,1715337069410,-759.31,0.00027671,5]
[326769207,1715337069420,-3893.28,0.00027671,5]
[326769208,1715337069429,-8675.95,0.00027671,5]
[326769209,1715337069439,-768.82,0.00027671,5]
[326769210,1715337069448,-500.0,0.00027671,5]
[326769211,1715337069457,-6068.54,0.00027671,5]
[326769212,1715337069467,-2420.82,0.00027671,5]
[326769213,1715337069476,-2955.7,0.00027671,5]
[326769214,1715337069486,-500.0,0.00027671,2]
[326769215,1715337069495,-555.18,0.00027671,5]
[326769216,1715337069504,-1147.82,0.00027671,5]
[326769217,1715337069514,-1638.67,0.00027671,5]
[326769218,1715337069523,-500.0,0.00027671,5]
[326769219,1715337069533,-1391.69,0.00027671,5]
[326769220,1715337069543,-25715.46,0.00027671,5]
[326769221,1715337069552,-1177.44,0.00027671,5]
[326769222,1715337069561,-1769.7,0.00027671,5]
[326769223,1715337069571,-500.0,0.00027671,5]
[326769224,1715337069580,-500.0,0.00027671,5]
[326769225,1715337069590,-806.61,0.00027671,5]
[326769226,1715337069600,-2391.66,0.00027671,5]
[326769227,1715337069609,-719.79,0.00027671,5]
[326769228,1715337069618,-500.0,0.00027671,5]
[326769229,1715337069629,-1893.75,0.00027671,5]
[326769230,1715337069638,-544.64,0.00027671,5]
[326769231,1715337069647,-647.7,0.00027671,5]
[326769232,1715337069656,-796.73,0.00027671,5]
[326769233,1715337069665,-514.57589746,0.00027671,5]
[326769234,1715337069675,-800.69,0.00027671,5]
[326769235,1715337069685,-507.64842937,0.00027671,5]
[326769236,1715337069694,-611.73,0.00027671,5]
[326769237,1715337069704,-567.7,0.00027671,5]
[326769238,1715337069713,-4189.24,0.00027671,5]
[326769239,1715337069722,-662.25,0.00027671,5]
[326769240,1715337069735,-500.0,0.00027671,5]
[326769241,1715337069745,-1138.58,0.00027671,5]
[326769242,1715337069755,-598.01,0.00027671,5]
[326769243,1715337069765,-548.45,0.00027671,5]
[326769244,1715337069775,-2722.96,0.00027671,5]
[326769245,1715337069785,-2933.99,0.00027671,5]
[326769246,1715337069794,-978.47,0.00027671,2]
[326769247,1715337069804,-969.26,0.00027671,5]
[326769248,1715337069814,-1524.15,0.00027671,5]
[326769249,1715337069824,-2125.79,0.00027671,5]
[326769250,1715337069835,-1956.3,0.00027671,5]
[326769251,1715337069844,-500.0,0.00027671,5]
[326769252,1715337069854,-500.0,0.00027671,5]
[326769253,1715337069864,-161.0,0.00027671,4]
[326769254,1715337069873,-263.6898545,0.00027683,2]
[326769255,1715337069883,-10128.0,0.00027702,3]
[326769256,1715337069892,-187.57725276,0.00027723,2]
[326769257,1715337069902,-234.86682721,0.0002774,2]
[326769258,1715337069912,-300.0,0.00027784,2]
[326769259,1715337069921,-500.0,0.00027784,2]
[326769260,1715337069931,-500.0,0.00027784,2]
[326769261,1715337069940,-500.0,0.00027784,2]
[326769262,1715337069949,-500.0,0.00027784,2]
[326769263,1715337069958,-500.0,0.00027784,2]
[326769264,1715337069968,-500.0,0.00027784,2]
[326769265,1715337069977,-500.0,0.00027784,2]
[326769266,1715337069986,-500.0,0.00027784,2]
[326769267,1715337069995,-500.0,0.00027784,2]
[326769268,1715337070004,-500.0,0.00027784,2]
[326769269,1715337070014,-500.0,0.00027784,2]
[326769270,1715337070023,-500.0,0.00027784,2]
[326769271,1715337070033,-500.0,0.00027784,2]
[326769272,1715337070043,-500.0,0.00027784,2]
[326769273,1715337070053,-500.0,0.00027784,2]
[326769274,1715337070062,-500.0,0.00027784,2]
[326769275,1715337070071,-500.0,0.00027784,2]
[326769276,1715337070080,-500.0,0.00027784,2]
[326769277,1715337070090,-500.0,0.00027784,2]
[326769278,1715337070100,-500.0,0.00027784,2]
[326769279,1715337070109,-500.0,0.00027784,2]
[326769280,1715337070118,-500.0,0.00027784,2]
[326769281,1715337070127,-500.0,0.00027784,2]
[326769282,1715337070136,-500.0,0.00027784,2]
[326769283,1715337070145,-500.0,0.00027784,2]
[326769284,1715337070155,-500.0,0.00027784,2]
[326769285,1715337070165,-500.0,0.00027784,2]
[326769286,1715337070174,-500.0,0.00027784,2]
[326769287,1715337070183,-500.0,0.00027784,2]
[326769288,1715337070192,-500.0,0.00027784,2]
[326769289,1715337070201,-500.0,0.00027784,2]
[326769290,1715337070210,-500.0,0.00027784,2]
[326769291,1715337070219,-500.0,0.00027784,2]
[326769292,1715337070228,-500.0,0.00027784,2]
[326769293,1715337070238,-500.0,0.00027784,2]
[326769294,1715337070247,-500.0,0.00027784,2]
[326769295,1715337070257,-500.0,0.00027784,2]
[326769296,1715337070266,-500.0,0.00027784,2]
[326769297,1715337070275,-500.0,0.00027784,2]
[326769298,1715337070284,-500.0,0.00027784,2]
[326769299,1715337070294,-500.0,0.00027784,2]
[326769300,1715337070304,-500.0,0.00027784,2]
[326769301,1715337070313,-500.0,0.00027784,2]
[326769302,1715337070322,-500.0,0.00027784,2]
[326769303,1715337070333,-500.0,0.00027784,2]
[326769304,1715337070343,-500.0,0.00027784,2]
[326769305,1715337070352,-500.0,0.00027784,2]
[326769306,1715337070361,-500.0,0.00027784,2]
[326769307,1715337070371,-500.0,0.00027784,2]
[326769308,1715337070380,-500.0,0.00027784,2]
[326769309,1715337070389,-500.0,0.00027784,2]
[326769310,1715337070399,-500.0,0.00027784,2]
[326769311,1715337070408,-500.0,0.00027784,2]
[326769312,1715337070417,-500.0,0.00027784,2]
[326769313,1715337070426,-500.0,0.00027784,2]
[326769314,1715337070435,-500.0,0.00027784,2]
[326769315,1715337070445,-500.0,0.00027784,2]
[326769316,1715337070454,-500.0,0.00027784,2]
[326769317,1715337070464,-500.0,0.00027784,2]
[326769318,1715337070473,-500.0,0.00027784,2]
[326769319,1715337070483,-500.0,0.00027784,2]
[326769320,1715337070492,-500.0,0.00027784,2]
[326769321,1715337070502,-500.0,0.00027784,2]
[326769322,1715337070511,-500.0,0.00027784,2]
[326769323,1715337070521,-500.0,0.00027784,2]
[326769324,1715337070530,-500.0,0.00027784,2]
[326769325,1715337070540,-500.0,0.00027784,2]
[326769326,1715337070550,-500.0,0.00027784,2]
[326769327,1715337070559,-500.0,0.00027784,2]
[326769328,1715337070569,-500.0,0.00027784,2]
[326769329,1715337070578,-500.0,0.00027784,2]
[326769330,1715337070588,-500.0,0.00027784,2]
[326769331,1715337070597,-500.0,0.00027784,2]
[326769332,1715337070607,-500.0,0.00027784,2]
[326769333,1715337070616,-500.0,0.00027784,2]
[326769334,1715337070625,-500.0,0.00027784,2]
[326769335,1715337070634,-500.0,0.00027784,2]
[326769336,1715337070644,-500.0,0.00027784,2]
[326769337,1715337070653,-500.0,0.00027784,2]
[326769338,1715337070663,-500.0,0.00027784,2]
[326769339,1715337070673,-500.0,0.00027784,2]
[326769340,1715337070683,-500.0,0.00027784,2]
[326769341,1715337070693,-500.0,0.00027784,2]
[326769342,1715337070703,-500.0,0.00027784,2]
[326769343,1715337070712,-500.0,0.00027784,2]
[326769344,1715337070722,-500.0,0.00027784,2]
[326769345,1715337070731,-500.0,0.00027784,2]
[326769346,1715337070746,-500.0,0.00027784,2]
[326769347,1715337070755,-500.0,0.00027784,2]
[326769348,1715337070765,-500.0,0.00027784,2]
[326769349,1715337070775,-500.0,0.00027784,2]
[326769350,1715337070785,-500.0,0.00027784,2]
[326769351,1715337070794,-500.0,0.00027784,2]
[326769352,1715337070804,-500.0,0.00027784,2]
[326769353,1715337070813,-500.0,0.00027784,2]
[326769354,1715337070824,-500.0,0.00027784,2]
[326769355,1715337070834,-500.0,0.00027784,2]
[326769356,1715337070843,-500.0,0.00027784,2]
[326769357,1715337070853,-500.0,0.00027784,2]
[326769358,1715337070862,-500.0,0.00027784,2]
[326769359,1715337070871,-500.0,0.00027784,2]
[326769360,1715337070880,-500.0,0.00027784,2]
[326769361,1715337070890,-500.0,0.00027784,2]
[326769362,1715337070899,-500.0,0.00027784,2]
[326769363,1715337070908,-500.0,0.00027784,2]
[326769364,1715337070918,-500.0,0.00027784,2]
[326769365,1715337070928,-500.0,0.00027784,2]
[326769366,1715337070938,-500.0,0.00027784,2]
[326769367,1715337070947,-500.0,0.00027784,2]
[326769368,1715337070956,-500.0,0.00027784,2]
[326769369,1715337070965,-500.0,0.00027784,2]
[326769370,1715337070974,-500.0,0.00027784,2]
[326769371,1715337070983,-500.0,0.00027784,2]
[326769372,1715337070992,-500.0,0.00027784,2]
[326769373,1715337071001,-500.0,0.00027784,2]
[326769374,1715337071010,-500.0,0.00027784,2]
[326769375,1715337071019,-500.0,0.00027784,2]
[326769376,1715337071029,-500.0,0.00027784,2]
[326769377,1715337071039,-500.0,0.00027784,2]
[326769378,1715337071048,-500.0,0.00027784,2]
[326769379,1715337071066,-500.0,0.00027784,2]
[326769380,1715337071077,-500.0,0.00027784,2]
[326769381,1715337071086,-500.0,0.00027784,2]
[326769382,1715337071095,-500.0,0.00027784,2]
[326769383,1715337071105,-500.0,0.00027784,2]
[326769384,1715337071114,-500.0,0.00027784,2]
[326769385,1715337071124,-500.0,0.00027784,2]
[326769386,1715337071133,-500.0,0.00027784,2]
[326769387,1715337071143,-500.0,0.00027784,2]
[326769388,1715337071152,-500.0,0.00027784,2]
[326769389,1715337071161,-500.0,0.00027784,2]
[326769390,1715337071171,-500.0,0.00027784,2]
[326769391,1715337071180,-500.0,0.00027784,2]
[326769392,1715337071190,-500.0,0.00027784,2]
[326769393,1715337071199,-500.0,0.00027784,2]
[326769394,1715337071209,-500.0,0.00027784,2]
[326769395,1715337071220,-500.0,0.00027784,2]
[326769396,1715337071229,-500.0,0.00027784,2]
[326769397,1715337071239,-500.0,0.00027784,2]
[326769398,1715337071248,-500.0,0.00027784,2]
[326769399,1715337071258,-500.0,0.00027784,2]
[326769400,1715337071267,-500.0,0.00027784,2]
[326769401,1715337071277,-500.0,0.00027784,2]
[326769402,1715337071286,-500.0,0.00027784,2]
[326769403,1715337071295,-500.0,0.00027784,2]
[326769404,1715337071305,-500.0,0.00027784,2]
[326769405,1715337071314,-500.0,0.00027784,2]
[326769406,1715337071324,-167.051011,0.00027798,14]
[326769407,1715337071333,-3337.30812647,0.00027867,2]
[326769408,1715337071342,-14588.3850807,0.00027867,2]
[326769409,1715337071352,-202.51056114,0.00027945,6]
[326769410,1715337071362,-500.0,0.00027945,6]
[326769411,1715337071371,-500.0,0.00027945,6]
[326769412,1715337071381,-500.0,0.00027945,6]
[326769413,1715337071390,-692.04,0.00027945,6]
[326769414,1715337071400,-500.0,0.00027945,6]
[326769415,1715337071410,-500.0,0.00027945,6]
[326769416,1715337071419,-500.0,0.00027945,6]
[326769417,1715337071428,-500.0,0.00027945,6]
[326769418,1715337071438,-1170.33,0.00027945,6]
[326769419,1715337071448,-764.28,0.00027945,6]
[326769420,1715337071458,-708.94,0.00027945,6]
[326769421,1715337071467,-660.63,0.00027945,6]
[326769422,1715337071476,-500.0,0.00027945,6]
[326769423,1715337071486,-500.0,0.00027945,6]
[326769424,1715337071496,-697.74,0.00027945,6]
[326769425,1715337071505,-500.0,0.00027945,2]
[326769426,1715337071515,-500.0,0.00027945,2]
[326769427,1715337071524,-500.0,0.00027945,2]
[326769428,1715337071534,-500.0,0.00027945,6]
[326769429,1715337071544,-500.0,0.00027945,2]
[326769430,1715337071553,-500.0,0.00027945,2]
[326769431,1715337071563,-515.18,0.00027945,6]
[326769432,1715337071572,-500.0,0.00027945,2]
[326769433,1715337071581,-500.0,0.00027945,2]
[326769434,1715337071591,-500.0,0.00027945,2]
[326769435,1715337071600,-500.0,0.00027945,2]
[326769436,1715337071610,-500.0,0.00027945,6]
[326769437,1715337071619,-524.65,0.00027945,6]
[326769438,1715337071630,-500.0,0.00027945,6]
[326769439,1715337071640,-581.11,0.00027945,6]
[326769440,1715337071649,-500.0,0.00027945,6]
[326769441,1715337071659,-535.63898023,0.00027945,6]
[326769442,1715337071668,-873.55,0.00027945,6]
[326769443,1715337071678,-500.0,0.00027945,6]
[326769444,1715337071688,-500.0,0.00027945,6]
[326769445,1715337071698,-500.0,0.00027945,6]
[326769446,1715337071708,-500.0,0.00027945,6]
[326769447,1715337071718,-500.0,0.00027945,6]
[326769448,1715337071727,-543.21,0.00027945,6]
[326769449,1715337071740,-500.0,0.00027945,6]
[326769450,1715337071750,-332.37994714,0.00027945,6]
[326769451,1715337071760,-500.0,0.00027945,6]
[326769452,1715337071770,-672.64,0.00027945,6]
[326769453,1715337071780,-688.39,0.00027945,6]
[326769454,1715337071790,-666.11,0.00027945,6]
[326769455,1715337071799,-774.54,0.00027945,6]
[326769456,1715337071811,-500.0,0.00027945,6]
[326769457,1715337071820,-883.79,0.00027945,6]
[326769458,1715337071830,-519.55,0.00027945,6]
[326769459,1715337071839,-500.0,0.00027945,6]
[326769460,1715337071849,-592.32,0.00027945,6]
[326769461,1715337071859,-565.84,0.00027945,6]
[326769462,1715337071868,-965.11,0.00027945,6]
[326769463,1715337071877,-947.5,0.00027945,6]
[326769464,1715337071887,-500.0,0.00027945,6]
[326769465,1715337071897,-500.0,0.00027945,6]
[326769466,1715337071907,-500.0,0.00027945,6]
[326769467,1715337071916,-516.45105712,0.00027945,6]
[326769468,1715337071927,-628.86,0.00027945,6]
[326769469,1715337071937,-501.09,0.00027945,6]
[326769470,1715337071947,-500.0,0.00027945,6]
[326769471,1715337071957,-500.0,0.00027945,6]
[326769472,1715337071967,-500.0,0.00027945,6]
[326769473,1715337071977,-586.84,0.00027945,6]
[326769474,1715337071987,-879.19,0.00027945,6]
[326769475,1715337071996,-500.0,0.00027945,6]
[326769476,1715337072007,-615.51,0.00027945,6]
[326769477,1715337072017,-316.191425,0.00027945,6]
[326769478,1715337072027,-500.0,0.00027945,6]
[326769479,1715337072037,-657.39,0.00027945,6]
[326769480,1715337072047,-500.0,0.00027945,6]
[326769481,1715337072057,-1003.11,0.00027945,6]
[326769482,1715337072067,-509.72088198,0.00027945,6]
[326769483,1715337072077,-500.0,0.00027945,6]
[326769484,1715337072086,-500.0,0.00027945,6]
[326769485,1715337072097,-529.88961992,0.00027945,6]
[326769486,1715337072107,-595.17,0.00027945,6]
[326769487,1715337072117,-665.74,0.00027945,6]
[326769488,1715337072132,-633.36,0.00027945,6]
[326769489,1715337072142,-500.0,0.00027945,6]
[326769490,1715337072152,-460.1064561,0.00027945,6]
[326769491,1715337072162,-500.0,0.00027945,6]
[326769492,1715337072172,-500.0,0.00027945,6]
[326769493,1715337072182,-500.0,0.00027945,6]
[326769494,1715337072192,-650.78,0.00027945,6]
[326769495,1715337072203,-531.25,0.00027945,6]
[326769496,1715337072213,-500.0,0.00027945,6]
[326769497,1715337072224,-357.89896041,0.00027945,6]
[326769498,1715337072234,-500.0,0.00027945,6]
[326769499,1715337072244,-500.0,0.00027945,6]
[326769500,1715337072255,-500.0,0.00027945,6]
[326769501,1715337072265,-500.0,0.00027945,6]
[326769502,1715337072275,-562.13,0.00027945,6]
[326769503,1715337072286,-150.0,0.00027945,6]
[326769504,1715337072297,-500.0,0.00027945,6]
[326769505,1715337072307,-820.55,0.00027945,6]
[326769506,1715337072318,-500.0,0.00027945,6]
[326769507,1715337072329,-500.0,0.00027945,6]
[326769508,1715337072339,-500.0,0.00027945,6]
[326769509,1715337072349,-501.65,0.00027945,6]
[326769510,1715337072360,-522.75444276,0.00027945,6]
[326769511,1715337072370,-539.09,0.00027945,6]
[326769512,1715337072380,-500.0,0.00027945,6]
[326769513,1715337072391,-500.0,0.00027945,6]
[326769514,1715337072401,-925.25,0.00027945,6]
[326769515,1715337072412,-500.0,0.00027945,6]